bitfinex/quotes_BTCUSD_20250718
["timestamp","ask_amount","ask_price","bid_price","bid_amount"]
[1752849649107,0.4067559,117710.0,117700.0,0.34104]
[1752849649321,0.4067559,117710.0,117700.0,0.00204]
[1752849649322,1.06335348,117710.0,117700.0,0.00204]
[1752849649534,0.4117159,117710.0,117700.0,0.00204]
[1752849651793,0.51176703,117710.0,117700.0,0.00204]
[1752849652288,0.98526688,117710.0,117700.0,0.00204]
[1752849652528,1.00079756,117710.0,117700.0,1e-08]
[1752849653546,0.21766302,117670.0,117660.0,0.02864906]
[1752849653779,0.38648847,117670.0,117660.0,0.02864906]
[1752849654029,0.18660567,117660.0,117650.0,0.34]
[1752849654242,0.01699992,117640.0,117630.0,0.67744558]
[1752849654496,0.18566014,117640.0,117630.0,1.08595463]
[1752849654761,0.3641707,117640.0,117630.0,0.26403616]
[1752849654993,0.35529652,117640.0,117630.0,0.00014319]
[1752849655208,0.35529652,117640.0,117630.0,0.20150626]
[1752849655452,0.35529652,117640.0,117630.0,0.0059785]
[1752849655711,0.38225616,117640.0,117630.0,0.0059785]
[1752849655950,0.41315616,117640.0,117630.0,0.0059785]
[1752849656177,0.41315616,117640.0,117630.0,0.00014319]
[1752849656407,0.47147171,117640.0,117630.0,0.00014319]
[1752849657054,0.41315616,117640.0,117630.0,0.00014319]
[1752849657271,0.41315616,117640.0,117630.0,0.00414319]
[1752849657272,0.41515616,117640.0,117630.0,0.00414319]
[1752849657692,0.41315616,117640.0,117630.0,0.00014319]
[1752849657967,0.22209616,117640.0,117630.0,0.00014319]
[1752849658200,0.34771616,117640.0,117630.0,0.34118319]
[1752849658471,0.38177616,117640.0,117630.0,0.34118319]
[1752849658708,0.41307616,117640.0,117630.0,0.34118319]
[1752849658938,0.41507616,117640.0,117630.0,0.34218319]
[1752849659175,0.41507616,117640.0,117630.0,0.00218319]
[1752849659421,0.22369616,117640.0,117630.0,0.00218319]
[1752849659668,0.41539616,117640.0,117630.0,0.00218319]
[1752849660646,0.41539616,117640.0,117580.0,0.025521]
[1752849660647,0.18709022,117590.0,117580.0,0.025521]
[1752849660920,0.35517567,117590.0,117580.0,0.0507718]
[1752849661123,0.35810567,117590.0,117580.0,0.05081916]
[1752849661343,0.35517567,117590.0,117580.0,0.39081916]
[1752849661566,0.35810567,117590.0,117580.0,0.05081916]
[1752849661837,0.41092431,117590.0,117580.0,0.02556836]
[1752849662086,0.42000567,117590.0,117580.0,4.736e-05]
[1752849662807,0.42000567,117590.0,117580.0,0.00204736]
[1752849662808,0.42100567,117590.0,117580.0,0.00204736]
[1752849665510,0.22994567,117590.0,117580.0,0.00204736]
[1752849665738,0.18809022,117590.0,117580.0,0.81554721]
[1752849665982,0.35609567,117590.0,117580.0,0.00204736]
[1752849666193,0.35609567,117590.0,117580.0,0.34204736]
[1752849666625,0.35709567,117590.0,117580.0,0.34304736]
[1752849666843,0.36002567,117590.0,117580.0,0.34304736]
[1752849667062,0.3842778,117590.0,117580.0,0.34304736]
[1752849667331,0.39242567,117590.0,117580.0,0.34304736]
[1752849667560,0.42412567,117590.0,117580.0,0.34304736]
[1752849668028,0.42412567,117590.0,117580.0,0.00304736]
[1752849668255,0.42412567,117590.0,117580.0,0.00308736]
[1752849668484,0.50394631,117590.0,117580.0,0.00308736]
[1752849668946,0.43866652,117590.0,117580.0,0.00308736]
[1752849669398,0.42412567,117590.0,117580.0,0.00308736]
[1752849669630,0.5241768,117590.0,117580.0,0.00308736]
[1752849670108,0.5241768,117590.0,117580.0,1e-08]
[1752849670988,0.5240568,117590.0,117580.0,1e-08]
[1752849671195,0.60981642,117590.0,117580.0,1e-08]
[1752849671415,0.5240568,117590.0,117580.0,1e-08]
[1752849671857,0.5013905,117590.0,117580.0,1e-08]
[1752849672065,0.34975595,117590.0,117580.0,1e-08]
[1752849672281,0.50951595,117590.0,117580.0,1e-08]
[1752849672494,0.61155483,117590.0,117580.0,1e-08]
[1752849672733,0.41686723,117590.0,117580.0,1e-08]
[1752849672930,0.41686723,117590.0,117560.0,0.05587851]
[1752849672931,0.25864749,117570.0,117560.0,0.05010041]
[1752849673140,0.26157749,117570.0,117560.0,0.05024964]
[1752849673351,0.27611834,117570.0,117560.0,0.05024964]
[1752849675057,0.43587834,117570.0,117560.0,0.05024964]
[1752849675287,0.58198739,117570.0,117560.0,0.05024964]
[1752849676570,0.52338862,117570.0,117560.0,0.05024964]
[1752849677000,0.52138862,117570.0,117560.0,0.05024964]
[1752849677568,0.52438862,117570.0,117560.0,0.05024964]
[1752849678204,0.52438862,117570.0,117560.0,0.05020923]
[1752849678369,0.52438862,117570.0,117560.0,0.05024923]
[1752849678808,0.56479251,117570.0,117560.0,0.05024923]
[1752849678994,0.52738862,117570.0,117560.0,0.05024923]
[1752849680651,0.32218777,117570.0,117560.0,0.05024923]
[1752849680866,0.35288204,117570.0,117560.0,0.39024923]
[1752849681255,0.36100749,117570.0,117560.0,0.86374908]
[1752849681667,0.36100749,117570.0,117560.0,0.39024923]
[1752849682080,0.35800749,117570.0,117560.0,0.39024923]
[1752849682726,0.36093749,117570.0,117560.0,0.39024923]
[1752849682921,0.47694777,117570.0,117560.0,0.39024923]
[1752849683154,0.52148862,117570.0,117560.0,0.39024923]
[1752849684199,0.38843749,117570.0,117560.0,0.36524923]
[1752849684412,0.19824749,117570.0,117560.0,0.36524923]
[1752849684633,0.39279749,117570.0,117560.0,0.36524923]
[1752849684851,0.39679749,117570.0,117560.0,0.36624923]
[1752849685289,0.42989749,117570.0,117560.0,0.36624923]
[1752849685701,0.58994931,117570.0,117560.0,0.36624923]
[1752849686134,0.2424044,117560.0,117550.0,0.07891]
[1752849686382,0.70050616,117560.0,117550.0,0.07940675]
[1752849686816,0.36050616,117560.0,117550.0,0.07940675]
[1752849688182,0.39017503,117560.0,117550.0,0.07940675]
[1752849688432,0.39217503,117560.0,117550.0,0.07944675]
[1752849688675,0.39217503,117560.0,117550.0,0.08044675]
[1752849688676,0.49522616,117560.0,117550.0,0.08044675]
[1752849688899,0.6073148,117560.0,117550.0,0.08044675]
[1752849689115,0.52742616,117560.0,117550.0,0.08044675]
[1752849689325,0.51930071,117560.0,117550.0,0.08044675]
[1752849689523,0.52742616,117560.0,117550.0,0.08044675]
[1752849692233,0.52242616,117560.0,117550.0,0.07944675]
[1752849692464,0.59839105,117560.0,117550.0,0.07944675]
[1752849692710,0.61693895,117560.0,117550.0,0.07944675]
[1752849692931,0.52538616,117560.0,117550.0,0.07944675]
[1752849693158,0.52126071,117560.0,117550.0,0.07944675]
[1752849693383,0.47964531,117560.0,117550.0,0.07944675]
[1752849693567,0.31996531,117560.0,117550.0,0.07944675]
[1752849693817,0.48364531,117560.0,117550.0,0.07944675]
[1752849694049,0.39089601,117560.0,117550.0,0.07944675]
[1752849694299,0.55057601,117560.0,117550.0,0.07944675]
[1752849695158,0.58167601,117560.0,117550.0,0.07944675]
[1752849695793,0.57767601,117560.0,117550.0,0.07944675]
[1752849695999,0.57767601,117560.0,117550.0,0.07485374]
[1752849696426,0.51474531,117560.0,117550.0,0.07485374]
[1752849697495,0.71894531,117560.0,117550.0,0.07485374]
[1752849697710,1.22254486,117560.0,117550.0,0.07485374]
[1752849697970,0.74904501,117560.0,117550.0,0.07485374]
[1752849698394,0.73348616,117560.0,117550.0,0.07485374]
[1752849698602,0.71894531,117560.0,117550.0,0.07485374]
[1752849698823,0.68784531,117560.0,117550.0,0.07485374]
[1752849699047,0.78916537,117560.0,117550.0,0.07485374]
[1752849699272,0.82236537,117560.0,117550.0,0.07485374]
[1752849699472,0.54372575,117560.0,117550.0,0.07485374]
[1752849699685,0.67076575,117560.0,117550.0,0.07485374]
[1752849699903,0.65520531,117560.0,117550.0,0.07485374]
[1752849700117,0.49556531,117560.0,117550.0,0.07485374]
[1752849700346,0.42269224,117560.0,117550.0,0.07485374]
[1752849700568,0.58233224,117560.0,117550.0,0.41485374]
[1752849700791,0.36256503,117560.0,117550.0,0.41485374]
[1752849701009,0.36252503,117560.0,117550.0,0.41485374]
[1752849701684,0.36252503,117560.0,117550.0,0.07485374]
[1752849702110,0.04130536,117560.0,117550.0,0.74558434]
[1752849702334,0.36324425,117560.0,117550.0,0.22253402]
[1752849702552,0.36324425,117560.0,117550.0,0.41819491]
[1752849702765,0.20364425,117560.0,117550.0,0.8925249]
[1752849702975,0.18461164,117560.0,117550.0,0.90260141]
[1752849703190,0.18911778,117560.0,117550.0,0.90260141]
[1752849703399,0.19964367,117560.0,117550.0,0.4205952]
[1752849703612,0.35924367,117560.0,117550.0,0.43760872]
[1752849703831,0.36875033,117560.0,117550.0,0.42059499]
[1752849704167,0.36875033,117560.0,117550.0,0.07485374]
[1752849704168,0.35986385,117560.0,117550.0,0.07485374]
[1752849704348,0.44847413,117560.0,117550.0,0.07485374]
[1752849704572,0.47907413,117560.0,117550.0,0.07485374]
[1752849704797,0.44847413,117560.0,117550.0,0.07485374]
[1752849705258,0.44843413,117560.0,117550.0,0.07485374]
[1752849706221,0.35982385,117560.0,117550.0,0.07485374]
[1752849706866,0.36292385,117560.0,117550.0,0.07485374]
[1752849707099,0.35892385,117560.0,117550.0,0.07485374]
[1752849707455,0.36092385,117560.0,117550.0,0.07585374]
[1752849708824,0.39222385,117560.0,117550.0,0.07585374]
[1752849709294,0.47773413,117560.0,117550.0,0.07585374]
[1752849709513,0.51103413,117560.0,117550.0,0.07585374]
[1752849711736,0.52357498,117560.0,117550.0,0.07485374]
[1752849711996,1.14994573,117560.0,117550.0,0.07485374]
[1752849712219,0.6093346,117560.0,117550.0,0.07485374]
[1752849712441,0.52357498,117560.0,117550.0,0.07485374]
[1752849712673,0.35347413,117560.0,117550.0,0.07585374]
[1752849712891,0.51299413,117560.0,117550.0,0.07585374]
[1752849713140,0.51199413,117560.0,117550.0,0.07585374]
[1752849713798,0.51499413,117560.0,117550.0,0.07585374]
[1752849714027,0.58350469,117560.0,117550.0,0.07585374]
[1752849714476,0.57950469,117560.0,117550.0,0.07485374]
[1752849714901,0.58350469,117560.0,117550.0,0.07485374]
[1752849715127,0.58549469,117560.0,117550.0,0.07485374]
[1752849715365,0.58149469,117560.0,117550.0,0.07485374]
[1752849715615,0.58449469,117560.0,117550.0,0.07485374]
[1752849716917,0.78869469,117560.0,117550.0,0.07485374]
[1752849717121,1.20822483,117560.0,117550.0,0.07485374]
[1752849718199,0.73472498,117560.0,117550.0,0.07485374]
[1752849719631,0.73472498,117560.0,117550.0,0.07301374]
[1752849721015,1.27533611,117560.0,117550.0,1e-08]
[1752849721292,1.27533611,117560.0,117530.0,1e-08]
[1752849721293,0.27179611,117540.0,117530.0,1e-08]
[1752849721549,0.51879639,117540.0,117530.0,1e-08]
[1752849721830,0.83592624,117540.0,117530.0,1e-08]
[1752849722033,0.50732554,117540.0,117530.0,1e-08]
[1752849722273,0.47712554,117540.0,117530.0,1e-08]
[1752849722705,0.51974197,117540.0,117530.0,1e-08]
[1752849723135,0.54994197,117540.0,117530.0,1e-08]
[1752849723360,0.39350197,117540.0,117530.0,1e-08]
[1752849723579,0.98682539,117540.0,117530.0,1e-08]
[1752849723791,1.00136624,117540.0,117530.0,1e-08]
[1752849724001,0.84192624,117540.0,117530.0,1e-08]
[1752849724225,0.52782639,117540.0,117530.0,1e-08]
[1752849724438,0.59762433,117540.0,117530.0,1e-08]
[1752849725159,1.07112418,117540.0,117530.0,1e-08]
[1752849726132,0.00812545,117510.0,117500.0,5.95093956]
[1752849726360,1.45933353,117510.0,117500.0,3.2992887]
[1752849726599,6.95825542,117510.0,117500.0,0.11371405]
[1752849726836,0.30138955,117500.0,117490.0,1e-08]
[1752849727066,7.03769347,117500.0,117490.0,1e-08]
[1752849727320,0.24272517,117440.0,117400.0,0.0092]
[1752849727564,0.24272517,117440.0,117380.0,0.03295985]
[1752849727565,0.18701596,117390.0,117380.0,0.03295985]
[1752849727806,0.7690854,117390.0,117380.0,0.03295985]
[1752849728050,0.2810447,117390.0,117380.0,0.03610985]
[1752849728299,0.17037019,117400.0,117390.0,0.24028372]
[1752849728300,0.00812545,117400.0,117390.0,0.24028372]
[1752849728542,0.0166413,117420.0,117410.0,0.18737719]
[1752849728786,0.00812545,117420.0,117410.0,0.73573324]
[1752849729027,0.19586372,117430.0,117410.0,1.22626682]
[1752849729028,0.19547174,117430.0,117410.0,1.22626682]
[1752849729257,0.00812545,117430.0,117420.0,1.075327]
[1752849729502,0.00812545,117430.0,117420.0,1.16108662]
[1752849729724,0.01702888,117440.0,117430.0,0.59084534]
[1752849729977,0.00851433,117440.0,117430.0,1.08137573]
[1752849730214,0.02565029,117440.0,117430.0,1.0845258]
[1752849730453,0.00049604,117440.0,117430.0,1.252481]
[1752849730686,0.00049604,117440.0,117430.0,1.4237509]
[1752849731384,0.00049604,117440.0,117430.0,1.4237909]
[1752849731627,0.00049604,117440.0,117430.0,1.4238709]
[1752849731865,0.00049604,117440.0,117430.0,0.96570013]
[1752849731866,0.17079576,117440.0,117430.0,0.96570013]
[1752849732096,0.00901044,117440.0,117430.0,1.05901963]
[1752849732332,0.00049604,117440.0,117430.0,1.07605046]
[1752849732576,0.00149604,117440.0,117430.0,1.80325579]
[1752849732834,0.00812545,117480.0,117470.0,0.59719378]
[1752849733058,0.00812545,117500.0,117490.0,0.24013846]
[1752849733249,0.19574408,117500.0,117490.0,0.69812985]
[1752849733511,0.25434509,117500.0,117490.0,0.0614]
[1752849733736,0.17836515,117490.0,117480.0,0.50056]
[1752849733967,0.26387543,117490.0,117480.0,0.50056]
[1752849734183,0.19540686,117470.0,117460.0,0.06465]
[1752849734398,0.19540686,117470.0,117460.0,0.69894985]
[1752849734606,0.19540686,117470.0,117460.0,0.78483668]
[1752849735042,0.19540686,117470.0,117460.0,0.14738683]
[1752849735262,0.28091714,117470.0,117460.0,0.16092721]
[1752849735477,0.19540686,117470.0,117460.0,1.04097706]
[1752849736194,0.17876853,117470.0,117460.0,1.21976125]
[1752849736417,0.18728097,117470.0,117460.0,1.12673668]
[1752849736643,0.19579407,117470.0,117460.0,1.04105706]
[1752849736863,0.18728163,117470.0,117460.0,0.88017706]
[1752849737083,0.19640708,117470.0,117460.0,0.56755721]
[1752849737298,0.19640708,117470.0,117460.0,0.40352721]
[1752849737526,0.19740708,117470.0,117460.0,0.56456721]
[1752849737763,0.28091736,117470.0,117460.0,0.16112721]
[1752849739267,0.28191736,117470.0,117460.0,0.00012721]
[1752849739479,0.28291736,117470.0,117460.0,0.00012721]
[1752849739909,0.28091736,117470.0,117460.0,0.00012721]
[1752849740143,0.19540708,117470.0,117460.0,0.53797706]
[1752849740617,0.19028163,117470.0,117460.0,0.75261477]
[1752849740827,0.19228163,117470.0,117460.0,1.03881706]
[1752849741039,0.18928163,117470.0,117460.0,1.03881706]
[1752849741529,0.19328163,117470.0,117460.0,1.03881706]
[1752849741999,0.18476904,117470.0,117460.0,1.03881706]
[1752849742205,0.18476904,117470.0,117460.0,0.56531721]
[1752849742422,0.19128163,117470.0,117460.0,1.03881706]
[1752849742648,0.19428163,117470.0,117460.0,1.03881706]
[1752849742872,0.007,117470.0,117460.0,1.37730648]
[1752849743087,0.004,117470.0,117460.0,1.37730656]
[1752849743300,0.0210246,117470.0,117460.0,1.37730656]
[1752849743520,0.01351223,117470.0,117460.0,1.38581973]
[1752849743746,0.19228133,117470.0,117460.0,0.48998749]
[1752849743975,0.19228133,117470.0,117460.0,1.12436734]
[1752849744188,0.19128133,117470.0,117460.0,1.81680734]
[1752849744401,0.18728133,117470.0,117460.0,1.81680734]
[1752849744618,0.18176846,117470.0,117460.0,2.07879628]
[1752849744846,0.19879335,117470.0,117460.0,1.89149885]
[1752849745067,0.19579335,117470.0,117460.0,2.07028304]
[1752849745309,0.0085123,117470.0,117460.0,2.09752269]
[1752849745524,0.17875106,117490.0,117480.0,0.0629]
[1752849745746,0.18726162,117490.0,117480.0,1.02250411]
[1752849745963,0.01702025,117500.0,117490.0,0.57312725]
[1752849746180,0.20425377,117500.0,117490.0,0.96506013]
[1752849746413,0.19574328,117500.0,117490.0,0.97357134]
[1752849746627,0.17872281,117500.0,117490.0,1.15230966]
[1752849746847,0.18731128,117510.0,117500.0,0.0658]
[1752849747062,0.17025251,117520.0,117510.0,0.4058]
[1752849747289,0.18723603,117530.0,117520.0,0.0658]
[1752849747509,0.18723603,117530.0,117520.0,1.04352985]
[1752849747761,0.18723603,117530.0,117520.0,0.88244985]
[1752849747964,0.17834964,117540.0,117520.0,0.88244985]
[1752849747965,0.17873193,117540.0,117530.0,0.34]
[1752849748186,0.18723945,117540.0,117530.0,0.87929985]
[1752849748408,0.19574617,117540.0,117530.0,0.96796013]
[1752849748636,0.19574596,117540.0,117530.0,1.14663783]
[1752849749102,0.19567668,117540.0,117530.0,1.13812944]
[1752849749320,0.1956774,117540.0,117530.0,1.05371975]
[1752849749539,0.18716995,117540.0,117530.0,1.05371975]
[1752849749749,0.17866243,117540.0,117530.0,0.06895]
[1752849749957,0.17866243,117540.0,117530.0,0.70336985]
[1752849750418,0.17866243,117540.0,117530.0,0.06895]
[1752849750637,0.17866243,117540.0,117530.0,0.22995]
[1752849750853,0.18678788,117540.0,117530.0,0.06895]
[1752849751064,0.18678788,117540.0,117530.0,0.22987]
[1752849751290,0.18678788,117540.0,117530.0,0.31345569]
[1752849751560,0.18778788,117540.0,117530.0,0.31445569]
[1752849751766,0.18878788,117540.0,117530.0,1.12795554]
[1752849751986,0.27429816,117540.0,117530.0,0.001]
[1752849752177,0.36429816,117540.0,117530.0,0.001]
[1752849752654,0.27878788,117540.0,117530.0,0.001]
[1752849753088,0.27778788,117540.0,117530.0,0.001]
[1752849753300,0.17867763,117530.0,117520.0,0.22608721]
[1752849753526,0.18680308,117530.0,117520.0,0.22608721]
[1752849753752,0.18680308,117530.0,117520.0,0.16096721]
[1752849753962,0.18680308,117530.0,117520.0,0.16092721]
[1752849754182,0.18680308,117530.0,117520.0,0.00012721]
[1752849754410,0.27231336,117530.0,117520.0,0.00016721]
[1752849754638,0.18680308,117530.0,117520.0,0.00016721]
[1752849754865,0.18680308,117530.0,117520.0,0.06524721]
[1752849755080,0.18780308,117530.0,117520.0,0.06524721]
[1752849755560,0.18980308,117530.0,117520.0,0.06524721]
[1752849756630,0.01150803,117530.0,117520.0,1.17238641]
[1752849756855,0.02852401,117530.0,117520.0,1.29193228]
[1752849757064,0.03703203,117530.0,117520.0,1.29193228]
[1752849757281,0.20720142,117530.0,117520.0,1.11186212]
[1752849757506,0.19018573,117530.0,117520.0,0.40524721]
[1752849757729,0.19018573,117530.0,117520.0,0.56588721]
[1752849757972,0.19018573,117530.0,117520.0,0.736071]
[1752849758206,0.19018573,117530.0,117520.0,0.56580721]
[1752849758409,0.19018573,117530.0,117520.0,0.56576721]
[1752849758626,0.19018573,117530.0,117520.0,0.77788785]
[1752849758854,0.18918573,117530.0,117520.0,0.56576721]
[1752849759092,0.18918573,117530.0,117520.0,0.76147805]
[1752849759330,0.00850788,117530.0,117520.0,1.45245242]
[1752849759552,0.18726167,117550.0,117540.0,0.23605484]
[1752849759772,0.00850571,117560.0,117550.0,0.42671995]
[1752849760000,0.0170115,117560.0,117550.0,1.29101302]
[1752849760242,0.01701142,117560.0,117550.0,1.29101302]
[1752849760450,0.01701135,117560.0,117550.0,1.29101302]
[1752849760662,0.02551713,117560.0,117550.0,1.29101309]
[1752849760882,0.21265574,117560.0,117550.0,1.3682662]
[1752849761115,0.19564338,117560.0,117550.0,1.37677285]
[1752849761321,0.00850455,117580.0,117570.0,0.57151142]
[1752849761548,0.17867251,117590.0,117570.0,1.37841237]
[1752849761773,0.17867251,117590.0,117580.0,0.66153541]
[1752849762219,0.17867251,117590.0,117580.0,0.06458]
[1752849762434,0.17867251,117590.0,117580.0,0.66153541]
[1752849762657,0.01750438,117590.0,117580.0,0.84864183]
[1752849762921,0.17057914,117590.0,117580.0,1.3514071]
[1752849763151,0.18758687,117590.0,117580.0,1.17280531]
[1752849763363,0.18758687,117590.0,117580.0,1.35991187]
[1752849763583,0.18758687,117590.0,117580.0,1.34127015]
[1752849763806,0.17908311,117590.0,117580.0,1.33276531]
[1752849764020,0.17908311,117590.0,117580.0,1.51136703]
[1752849764204,0.17908311,117590.0,117580.0,1.33276531]
[1752849764496,0.17908311,117590.0,117580.0,1.08708569]
[1752849764929,0.00049665,117590.0,117580.0,1.44257623]
[1752849765373,0.00049665,117590.0,117580.0,1.48445078]
[1752849765615,0.00149665,117590.0,117580.0,1.48645078]
[1752849765833,0.00149665,117590.0,117580.0,1.53033585]
[1752849766054,0.00149665,117590.0,117580.0,1.52833585]
[1752849766278,0.00049665,117590.0,117580.0,1.52833585]
[1752849767005,0.00049665,117590.0,117580.0,1.5702104]
[1752849767220,0.00049665,117590.0,117580.0,1.5698104]
[1752849767444,0.00149665,117590.0,117580.0,1.58735125]
[1752849767657,0.00149665,117590.0,117580.0,1.04039584]
[1752849767876,0.01750381,117590.0,117580.0,0.75449155]
[1752849768098,0.18858687,117590.0,117580.0,0.15713028]
[1752849768318,0.19058687,117590.0,117580.0,0.28627028]
[1752849768550,0.2648236,117590.0,117580.0,0.00404]
[1752849768776,0.4237636,117590.0,117580.0,4e-05]
[1752849769007,0.4247636,117590.0,117580.0,0.00304]
[1752849769220,0.5147636,117590.0,117580.0,0.00304]
[1752849769735,0.5122636,117590.0,117580.0,4e-05]
[1752849769980,0.44515232,117590.0,117580.0,4e-05]
[1752849770215,0.28571232,117590.0,117580.0,4e-05]
[1752849770684,0.28771232,117590.0,117580.0,0.00404]
[1752849770889,0.27958687,117590.0,117580.0,0.00404]
[1752849771100,0.28571232,117590.0,117580.0,4e-05]
[1752849771316,0.28571232,117590.0,117580.0,0.15948]
[1752849771546,0.28258687,117590.0,117580.0,0.80373376]
[1752849771811,0.12100792,117590.0,117580.0,1.4444363]
[1752849772043,0.29509041,117590.0,117580.0,1.43693196]
[1752849772264,0.1165038,117590.0,117580.0,1.4454363]
[1752849772473,0.01300019,117590.0,117580.0,1.53019592]
[1752849772693,0.00049665,117590.0,117580.0,1.52919592]
[1752849773149,0.00149665,117590.0,117580.0,0.93324051]
[1752849773376,0.01850366,117590.0,117580.0,1.53019592]
[1752849773560,0.01000012,117590.0,117580.0,0.93324051]
[1752849773813,0.01000012,117590.0,117580.0,1.53019592]
[1752849773814,0.00149665,117590.0,117580.0,1.53019592]
[1752849774044,0.00549665,117590.0,117580.0,1.54573677]
[1752849774474,0.00149665,117590.0,117580.0,1.54473677]
[1752849774900,0.00349665,117590.0,117580.0,1.54873677]
[1752849775154,0.00049665,117590.0,117580.0,1.54373677]
[1752849775634,0.00149665,117590.0,117580.0,1.54673677]
[1752849776114,0.00249665,117590.0,117580.0,1.54773677]
[1752849776532,0.00349665,117590.0,117580.0,1.55073677]
[1752849777183,0.00349665,117590.0,117580.0,1.59261132]
[1752849777635,0.00349665,117590.0,117580.0,1.61813132]
[1752849778254,0.18710183,117630.0,117620.0,0.53554408]
[1752849778480,0.18710183,117630.0,117620.0,1.2459329]
[1752849778481,0.20410371,117630.0,117620.0,1.2459329]
[1752849778698,0.18710205,117630.0,117620.0,0.61975749]
[1752849778919,0.17861937,117640.0,117630.0,0.34]
[1752849779136,0.17861937,117640.0,117630.0,1.10548129]
[1752849779344,0.17861937,117640.0,117630.0,1.12350423]
[1752849779592,0.18702077,117650.0,117640.0,0.187011]
[1752849779825,0.00849993,117640.0,117630.0,0.34467831]
[1752849780033,0.0340005,117640.0,117630.0,1.10949487]
[1752849780252,0.18702091,117650.0,117640.0,0.17851056]
[1752849780253,0.17889524,117650.0,117640.0,0.17851056]
[1752849780484,0.19589416,117650.0,117640.0,0.93487654]
[1752849780703,0.19589416,117650.0,117630.0,0.00634186]
[1752849780705,0.17851056,117640.0,117630.0,0.00634186]
[1752849780922,0.17851056,117640.0,117620.0,0.00116721]
[1752849780923,0.17852573,117630.0,117620.0,0.00116721]
[1752849781154,0.18665118,117630.0,117620.0,0.00116721]
[1752849781600,0.34601118,117630.0,117620.0,0.00116721]
[1752849781825,0.34751118,117630.0,117620.0,0.00116721]
[1752849782141,0.34751118,117630.0,117620.0,0.00016721]
[1752849782380,0.18815118,117630.0,117620.0,0.00016721]
[1752849782629,0.34751118,117630.0,117620.0,0.00016721]
[1752849782852,0.37751118,117630.0,117620.0,0.00016721]
[1752849783537,0.34751118,117630.0,117620.0,0.00016721]
[1752849784037,0.18665118,117630.0,117620.0,0.00016721]
[1752849784498,0.18665118,117630.0,117620.0,0.00330721]
[1752849784732,0.18665118,117630.0,117620.0,0.00016721]
[1752849785657,0.34597118,117630.0,117620.0,0.00016721]
[1752849786104,0.35397118,117630.0,117620.0,0.00116721]
[1752849786570,0.35547118,117630.0,117620.0,0.00116721]
[1752849786817,0.47558146,117630.0,117620.0,1e-08]
[1752849787096,0.52022231,117630.0,117620.0,1e-08]
[1752849787381,0.18712204,117570.0,117560.0,0.089322]
[1752849787625,0.18712204,117570.0,117560.0,0.30863028]
[1752849787859,0.19524749,117570.0,117560.0,0.41012613]
[1752849788107,0.19524749,117570.0,117560.0,0.41326613]
[1752849788565,0.17010973,117580.0,117560.0,1.26585771]
[1752849788807,0.03402017,117570.0,117560.0,0.96718778]
[1752849789046,0.00850492,117570.0,117560.0,1.01957667]
[1752849789269,0.19538108,117580.0,117570.0,0.4058]
[1752849789507,0.1957604,117580.0,117570.0,1.16207541]
[1752849789744,0.19538115,117580.0,117570.0,1.3438324]
[1752849789981,0.00014891,117580.0,117570.0,1.29553837]
[1752849790213,0.00014891,117580.0,117570.0,1.53207307]
[1752849790214,0.02566199,117580.0,117570.0,1.53207307]
[1752849790447,0.00014891,117580.0,117570.0,1.54057813]
[1752849790697,0.01715773,117580.0,117570.0,1.54057813]
[1752849790977,0.01715765,117580.0,117570.0,1.53207256]
[1752849791223,0.00014891,117580.0,117570.0,0.93511715]
[1752849791439,0.00014891,117580.0,117570.0,1.53207256]
[1752849791677,0.00214891,117580.0,117570.0,1.53307256]
[1752849792614,0.00314891,117580.0,117570.0,1.53407256]
[1752849792848,0.00314891,117580.0,117570.0,1.54861341]
[1752849793074,0.00214891,117580.0,117570.0,1.54761341]
[1752849793304,0.00214891,117580.0,117570.0,1.58948796]
[1752849793760,0.01844274,117620.0,117610.0,1.19521612]
[1752849793981,0.0015901,117620.0,117610.0,1.52576602]
[1752849794203,0.0015901,117620.0,117610.0,1.52890602]
[1752849794429,0.0015901,117620.0,117610.0,1.54344687]
[1752849794902,0.0015901,117620.0,117610.0,1.58532142]
[1752849795356,0.0004,117650.0,117640.0,0.26011085]
[1752849795580,0.0004,117650.0,117640.0,1.14798306]
[1752849795808,0.0004,117650.0,117640.0,1.50566391]
[1752849796763,0.0024,117650.0,117640.0,1.51166391]
[1752849797742,0.0024,117650.0,117640.0,1.51162391]
[1752849798386,0.0024,117650.0,117640.0,0.9146685]
[1752849798597,0.0024,117650.0,117640.0,1.33788306]
[1752849799019,0.0034,117650.0,117640.0,1.50112306]
[1752849799455,0.0034,117650.0,117640.0,0.9187085]
[1752849799713,0.0034,117650.0,117640.0,1.51566391]
[1752849800396,0.19889438,117650.0,117640.0,0.59785028]
[1752849800616,0.19039503,117650.0,117640.0,0.25471028]
[1752849800837,0.19039503,117650.0,117640.0,0.59471028]
[1752849801099,0.19852048,117650.0,117640.0,0.01004]
[1752849801312,0.19852048,117650.0,117640.0,0.16916]
[1752849802417,0.19752048,117650.0,117640.0,0.16516]
[1752849802633,0.19752048,117650.0,117640.0,0.34604]
[1752849802871,0.19852048,117650.0,117640.0,0.34604]
[1752849803092,0.20002048,117650.0,117640.0,0.00604]
[1752849803317,0.38924048,117650.0,117640.0,0.00604]
[1752849803534,0.38924048,117650.0,117640.0,4e-05]
[1752849803535,0.51819161,117650.0,117640.0,4e-05]
[1752849803748,0.34453076,117650.0,117640.0,4e-05]
[1752849803963,0.49652531,117650.0,117640.0,0.00204]
[1752849804179,0.50465076,117650.0,117640.0,0.00204]
[1752849804400,0.50365076,117650.0,117640.0,4e-05]
[1752849804824,0.50765076,117650.0,117640.0,0.00104]
[1752849805248,0.50261076,117650.0,117640.0,4e-05]
[1752849805480,0.18739503,117650.0,117640.0,0.1700502]
[1752849805694,0.02302458,117650.0,117640.0,0.83335382]
[1752849805908,0.21851903,117650.0,117640.0,0.60213541]
[1752849806114,0.20152055,117650.0,117640.0,0.00204]
[1752849806339,0.19952055,117650.0,117640.0,0.00104]
[1752849806550,0.44861083,117650.0,117640.0,0.00204]
[1752849806789,0.48161083,117650.0,117640.0,0.00204]
[1752849807008,0.36160055,117650.0,117640.0,0.00204]
[1752849807224,0.20252055,117650.0,117640.0,0.00204]
[1752849808558,0.19952055,117650.0,117640.0,0.00104]
[1752849808992,0.20052055,117650.0,117640.0,0.00204]
[1752849809241,0.19652055,117650.0,117640.0,0.00104]
[1752849809680,0.1883951,117650.0,117640.0,0.00104]
[1752849809894,0.19652055,117650.0,117640.0,0.00104]
[1752849810965,0.19802055,117650.0,117640.0,0.00104]
[1752849811183,0.19952055,117650.0,117640.0,0.00204]
[1752849811609,0.19952055,117650.0,117640.0,0.00104]
[1752849811610,0.19652055,117650.0,117640.0,0.00104]
[1752849812054,0.1893951,117650.0,117640.0,0.59899541]
[1752849812274,0.19752055,117650.0,117640.0,0.60210541]
[1752849812524,0.19752055,117650.0,117640.0,0.16104]
[1752849812525,0.02752429,117650.0,117640.0,0.16104]
[1752849812736,0.01052545,117650.0,117640.0,0.36505107]
[1752849812953,0.0024,117650.0,117640.0,1.49165738]
[1752849813392,0.0024,117650.0,117640.0,1.55876866]